bitfinex-derivatives/quotes_ETHF0:USTF0_20250626
["timestamp","ask_amount","ask_price","bid_price","bid_amount"]
[1750935979612,0.81488,2453.3,2453.2,4.6056]
[1750935980413,0.81488,2453.3,2453.2,3.2078]
[1750935981012,0.81488,2453.3,2452.9,1.347]
[1750935981013,0.81498,2453.0,2452.9,3.2078]
[1750935981214,0.81508,2452.7,2452.6,3.2078]
[1750935981421,0.81518,2452.4,2452.3,5.37]
[1750935981619,0.81518,2452.4,2452.3,3.2078]
[1750935982912,0.81518,2452.4,2452.0,3.2078]
[1750935982913,0.81528,2452.1,2452.0,3.2078]
[1750935983109,3.2078,2452.4,2451.7,9.8938]
[1750935983314,0.81538,2451.9,2451.8,0.81537]
[1750935983917,0.81533,2452.0,2451.9,0.81532]
[1750935985322,0.81523,2452.3,2452.2,0.81524]
[1750935985818,0.81523,2452.3,2451.8,3.41382]
[1750935985819,0.81524,2452.2,2452.1,4.02305]
[1750935986217,0.81523,2452.3,2452.2,0.81524]
[1750935986726,0.81517,2452.5,2452.4,0.81516]
[1750935987025,0.81516,2452.5,2452.4,0.81516]
[1750935987520,0.81519,2452.4,2452.3,0.81519]
[1750935987721,0.81516,2452.5,2452.4,0.81516]
[1750935988722,0.81513,2452.6,2452.5,0.81513]
[1750935988917,0.8151,2452.7,2452.6,0.81511]
[1750935989525,0.81511,2452.6,2452.5,4.02293]
[1750935990020,0.81511,2452.6,2452.5,3.2078]
[1750935990326,0.81511,2452.6,2452.5,4.02294]
[1750935990733,0.81517,2452.5,2452.4,0.81515]
[1750935991421,0.8151,2452.7,2452.6,0.81509]
[1750935992330,0.81505,2452.9,2452.8,0.81504]
[1750935993721,0.81508,2452.8,2452.7,0.81505]
[1750935994223,0.81503,2452.9,2452.8,0.81501]
[1750935995318,0.81508,2452.8,2452.7,0.81505]
[1750935995522,0.81508,2452.7,2452.6,2.91919]
[1750935995923,0.81511,2452.6,2452.5,10.5964]
[1750935996131,0.81511,2452.6,2452.5,9.8948]
[1750935996427,0.81511,2452.6,2452.5,10.70994]
[1750935997125,0.81511,2452.6,2452.5,4.02294]
[1750935997828,0.81511,2452.6,2452.5,3.2078]
[1750935998036,0.81511,2452.6,2452.5,4.02294]
[1750935999224,0.8151,2452.7,2452.6,0.81506]
[1750935999424,0.8151,2452.7,2452.6,2.18156]
[1750936000329,0.81507,2452.8,2452.7,0.81504]
[1750936003229,0.81508,2452.7,2452.6,2.18158]
[1750936005224,0.81511,2452.6,2452.5,3.2078]
[1750936005429,2.03795,2452.4,2451.7,3.2078]
[1750936005622,2.03831,2452.0,2451.5,1.62486569]
[1750936005823,0.81548,2451.5,2451.4,1.62486569]
[1750936006123,0.81548,2451.5,2451.4,2.43623172]
[1750936007622,0.81548,2451.5,2451.4,1.62435328]
[1750936008126,0.81551,2451.4,2451.3,1.62435328]
[1750936008323,5.46191,2451.4,2451.3,1.62435328]
[1750936008723,10.43712692,2451.4,2451.3,1.62435328]
[1750936009133,5.46191,2451.4,2451.3,1.62435328]
[1750936009432,0.81554,2451.3,2451.2,2.43623172]
[1750936010328,0.81554,2451.3,2451.2,3.25181172]
[1750936010535,0.81554,2451.3,2451.2,0.81558]
[1750936011033,0.81558,2451.2,2451.1,4.02339]
[1750936012134,0.81553,2451.4,2451.3,0.81551]
[1750936012333,0.81553,2451.4,2451.3,3.25271951]
[1750936014039,3.9103,2451.7,2451.3,2.43720951]
[1750936014234,0.81546,2451.6,2451.5,0.81544]
[1750936014636,4.02323,2451.7,2451.6,0.81544]
[1750936015134,3.2078,2451.7,2451.6,0.81544]
[1750936015340,4.02321,2451.7,2451.6,0.81544]
[1750936015633,3.2078,2451.7,2451.6,0.81544]
[1750936016240,3.2078,2451.7,2451.6,2.13144]
[1750936016436,0.81536,2451.9,2451.8,0.81538]
[1750936016637,0.81534,2451.9,2451.8,0.81538]
[1750936017736,1.49241,2452.3,2452.2,0.81524]
[1750936018042,0.81524,2452.2,2452.1,4.02306]
[1750936020041,0.81523,2452.3,2452.2,0.81521]
[1750936020242,0.81519,2452.5,2452.4,0.81518]
[1750936021832,0.81511,2452.7,2452.6,0.81509]
[1750936022031,0.81506,2452.8,2452.7,0.81508]
[1750936022536,0.81503,2452.9,2452.8,0.81504]
[1750936022737,1.75044362,2452.9,2452.8,0.81504]
[1750936024447,0.81504,2452.8,2452.7,2.26266]
[1750936024743,0.81508,2452.7,2452.6,7.4094]
[1750936024943,0.81508,2452.7,2452.6,8.22451]
[1750936025247,0.81506,2452.8,2452.7,0.81505]
[1750936025444,0.81508,2452.7,2452.6,8.22449]
[1750936026238,0.81508,2452.7,2452.6,8.22451]
[1750936026447,0.81508,2452.7,2452.6,6.686]
[1750936028637,0.81508,2452.7,2452.1,5.18548951]
[1750936028638,2.97172095,2452.7,2452.1,9.8878]
[1750936028945,0.81517,2452.5,2452.4,0.81514]
[1750936029742,0.81507,2452.8,2452.4,2.03791]
[1750936029938,0.81507,2452.8,2452.7,0.81508]
[1750936030637,6.43946331,2453.0,2452.7,2.03768]
[1750936030835,6.43946331,2453.0,2452.7,0.81508]
[1750936030836,2.41666331,2452.8,2452.7,0.81508]
[1750936031338,2.41666331,2452.8,2452.7,4.02288]
[1750936031543,4.18231297,2452.9,2452.8,0.81504]
[1750936031748,4.18233081,2452.9,2452.8,0.81504]
[1750936032144,0.93402185,2452.9,2452.8,0.81504]
[1750936033042,0.93402185,2452.9,2452.8,5.81504]
[1750936033847,4.0603862,2453.3,2452.9,0.81501]
[1750936033848,3.36986247,2453.0,2452.9,0.81501]
[1750936034042,3.36980439,2453.0,2452.9,0.81501]
[1750936034248,3.36980439,2453.0,2452.9,5.81501]
[1750936034552,0.93396377,2453.0,2452.9,5.81501]
[1750936036544,2.43584062,2453.6,2452.9,5.81501]
[1750936036742,1.75544975,2453.5,2453.4,4.02261]
[1750936038055,0.94062975,2453.5,2453.4,4.02261]
[1750936038848,1.75543975,2453.5,2453.4,4.02261]
[1750936039851,1.75543975,2453.5,2453.4,3.2078]
[1750936040052,1.75543975,2453.5,2453.4,9.8858]
[1750936040253,0.8148,2453.6,2453.5,0.81481]
[1750936040448,1.74716232,2453.6,2453.5,0.81481]
[1750936040854,1.74716232,2453.6,2453.4,9.8858]
[1750936040855,0.81481,2453.5,2453.4,10.70063]
[1750936041455,0.81481,2453.5,2453.4,9.8858]
[1750936041656,0.81481,2453.5,2453.4,10.70064]
[1750936042860,0.81481,2453.5,2453.4,9.8858]
[1750936043256,0.81481,2453.5,2453.4,10.70064]
[1750936043961,0.81481,2453.5,2453.4,9.8858]
[1750936044860,0.81481,2453.5,2453.4,10.70064]
[1750936046662,1.74694196,2453.5,2453.4,10.70064]
[1750936047168,0.93213196,2453.5,2453.4,10.70064]
[1750936047565,0.81476,2453.7,2453.6,0.81478]
[1750936047872,1.74693229,2453.7,2453.6,0.81478]
[1750936051974,0.81481,2453.6,2453.4,9.8858]
[1750936052175,1.74698229,2453.5,2453.3,0.81486]
[1750936052480,1.74701229,2453.4,2453.3,0.81486]
[1750936052669,0.81492,2453.3,2453.2,0.81488]
[1750936054182,2.74692,2453.4,2453.0,3.2078]
[1750936054480,0.81492,2453.2,2453.1,0.8149]
[1750936055679,1.52466,2453.4,2453.3,0.81488]
[1750936055882,2.45608301,2453.4,2453.3,0.81488]
[1750936056180,1.52466,2453.4,2453.3,0.81488]
[1750936056481,0.81491,2453.3,2453.2,0.81489]
[1750936058786,0.81494,2453.2,2453.1,0.81493]
[1750936059179,0.8149,2453.3,2453.2,0.81488]
[1750936059379,1.52467,2453.4,2453.3,0.81488]
[1750936059580,0.81494,2453.2,2453.1,0.81492]
[1750936060380,4.20163,2453.4,2453.0,9.8848]
[1750936060582,0.81494,2453.1,2453.0,10.69975]
[1750936060778,0.81494,2453.1,2453.0,9.8848]
[1750936062383,0.81494,2453.1,2453.0,10.69978]
[1750936064385,1.74999678,2453.1,2453.0,10.69978]
[1750936066292,0.81494,2453.1,2453.0,10.69978]
[1750936068896,1.75072345,2453.1,2453.0,10.69978]
[1750936069093,0.81494,2453.1,2453.0,10.69978]
[1750936069399,1.75089554,2453.1,2453.0,10.69978]
[1750936069598,0.93595554,2453.1,2453.0,10.69978]
[1750936069792,1.75089554,2453.1,2453.0,10.69978]
[1750936069999,0.93595554,2453.1,2453.0,10.69978]
[1750936070193,1.75089554,2453.1,2453.0,10.69978]
[1750936070394,0.93595554,2453.1,2453.0,10.69978]
[1750936070596,1.52469,2453.4,2453.3,0.81488]
[1750936070796,2.46065589,2453.4,2453.3,0.81488]
[1750936071296,2.46065589,2453.4,2453.3,4.02268]
[1750936073009,1.75080589,2453.4,2453.3,4.02268]
[1750936073802,0.81488,2453.3,2453.2,0.81489]
[1750936073996,0.81491,2453.2,2453.1,0.81492]
[1750936074298,0.81494,2453.1,2453.0,4.02276]
[1750936074603,1.75085126,2453.1,2453.0,10.69276]
[1750936080404,0.81504,2452.8,2452.7,2.43720951]
[1750936081202,0.81507,2452.7,2452.6,4.02289]
[1750936081904,0.81507,2452.7,2452.6,3.2078]
[1750936082107,0.81507,2452.7,2452.6,4.02291]
[1750936082503,0.6605,2453.0,2452.6,5.24554]
[1750936082706,1.4755,2453.0,2452.9,0.81501]
[1750936082909,2.41160295,2453.0,2452.9,0.81501]
[1750936083915,1.75110295,2453.0,2452.9,0.81501]
[1750936084108,1.75110295,2453.0,2452.9,2.14401]
[1750936085411,0.93610295,2453.0,2452.9,5.35181]
[1750936085717,0.93610295,2453.0,2452.9,12.02181]
[1750936092116,0.93610295,2453.0,2452.9,16.99941601]
[1750936093308,3.14444062,2453.6,2453.4,0.81481]
[1750936093510,1.75079226,2453.5,2453.4,0.81481]
[1750936094108,0.93598226,2453.5,2453.4,0.81481]
[1750936094315,0.93598226,2453.5,2453.4,3.44573153]
[1750936094520,0.93598226,2453.5,2453.4,4.89763153]
[1750936096117,1.75079226,2453.5,2453.4,11.55463153]
[1750936096315,0.93598226,2453.5,2453.4,11.55463153]
[1750936099214,0.93598226,2453.5,2453.4,7.47081]
[1750936099421,0.93598226,2453.5,2453.4,9.60601]
[1750936100909,0.93598226,2453.5,2453.4,0.81481]
[1750936101319,0.93598226,2453.5,2453.4,2.22561]
[1750936101507,1.75079226,2453.5,2453.4,2.22561]
[1750936101816,0.81484,2453.4,2453.3,4.02265]
[1750936102119,1.75082226,2453.4,2453.3,3.2078]
[1750936102309,3.13252226,2453.4,2453.3,3.2078]
[1750936102506,0.81488,2453.3,2453.2,7.4709]
[1750936102709,1.75086226,2453.3,2453.2,6.656]
[1750936103310,3.06376226,2453.3,2453.2,6.656]
[1750936104520,0.81491,2453.2,2453.1,0.81494]
[1750936104819,0.81494,2453.1,2453.0,4.02277]
[1750936108415,0.81494,2453.2,2453.1,0.81491]
[1750936108616,1.75070421,2453.2,2453.1,0.81491]
[1750936110609,0.93576421,2453.2,2453.1,0.81491]
[1750936110815,1.75067421,2453.2,2453.1,0.81491]
[1750936111724,0.81494,2453.1,2453.0,4.02276]
[1750936111919,0.93576421,2453.1,2453.0,4.02276]
[1750936112223,0.81497,2453.0,2452.9,6.656]
[1750936112524,1.75073421,2453.0,2452.9,7.47101]
[1750936112716,0.93576421,2453.0,2452.9,7.47101]
[1750936112915,1.75073421,2453.0,2452.9,0.81501]
[1750936114225,0.81507,2452.8,2452.7,0.81505]
[1750936114827,0.81504,2452.8,2452.7,0.81505]
[1750936115124,0.6901,2452.9,2452.8,0.81504]
[1750936116624,0.6901,2452.9,2452.8,3.44596153]
[1750936117725,0.6616,2453.4,2453.3,0.81488]
[1750936117922,0.93666303,2453.6,2453.3,3.44580153]
[1750936118124,2.43584062,2453.9,2453.6,2.63092153]
[1750936118317,0.93663953,2453.8,2453.6,4.07852153]
[1750936118523,0.93659499,2453.7,2453.6,4.89330153]
[1750936121125,0.93659499,2453.7,2453.6,2.26238]
[1750936121317,0.93659499,2453.7,2453.6,0.81478]
[1750936122327,0.93659499,2453.7,2453.6,4.87850153]
[1750936124433,1.51715,2454.0,2453.9,0.81468]
[1750936124634,2.45360925,2454.0,2453.9,0.81468]
[1750936127932,2.45360925,2454.0,2453.7,0.81471]
[1750936127933,0.81474,2453.8,2453.7,0.81471]
[1750936128133,0.81478,2453.6,2453.5,4.02259]
[1750936129325,0.81485,2453.5,2453.4,0.81481]
[1750936129632,0.81488,2453.4,2453.3,0.81486]
[1750936129937,1.51328,2453.4,2453.3,0.81486]
[1750936130331,0.81488,2453.3,2453.2,4.02269]
[1750936130638,0.81497,2453.1,2453.0,0.81495]
[1750936130836,0.81497,2453.0,2452.8,5.65006065]
[1750936131037,0.81497,2453.0,2452.9,0.81499]
[1750936136939,0.81501,2452.9,2452.8,4.02281]
[1750936137549,2.0374,2453.1,2452.7,0.81505]
[1750936137550,0.81504,2452.8,2452.7,0.81505]
[1750936137850,1.52894,2452.8,2452.7,0.81505]
[1750936139251,0.7139,2452.8,2452.7,0.81505]
[1750936140939,1.52894,2452.8,2452.7,0.81505]
[1750936141153,0.7139,2452.8,2452.7,0.81505]
[1750936142053,1.52894,2452.8,2452.7,0.81505]
[1750936142452,1.52894,2452.8,2452.6,2.63092153]
[1750936142453,0.81507,2452.7,2452.6,3.44600153]
[1750936142849,0.7139,2452.8,2452.6,2.63092153]
[1750936143045,1.52894,2452.8,2452.7,0.81507]
[1750936143245,0.7139,2452.8,2452.7,0.81507]
[1750936143448,1.52894,2452.8,2452.7,0.81507]
[1750936143646,0.7139,2452.8,2452.7,0.81507]
[1750936144554,1.52894,2452.8,2452.7,0.81507]
[1750936144953,0.81507,2452.7,2452.6,2.63092153]
[1750936145151,0.81511,2452.6,2452.5,3.2078]
[1750936145655,0.81511,2452.6,2452.5,4.02294]
[1750936147753,0.7141,2452.7,2452.6,0.81511]
[1750936147953,1.64870749,2452.7,2452.6,3.44603153]
[1750936148158,0.7141,2452.7,2452.6,3.44603153]
[1750936149356,0.7141,2452.7,2452.5,4.02291]
[1750936149555,0.7141,2452.7,2452.6,0.81511]
[1750936149751,1.52919,2452.7,2452.6,0.81511]
[1750936150160,0.7141,2452.7,2452.6,3.44603153]
[1750936150362,0.7141,2452.7,2452.6,4.80593153]
[1750936150556,9.8498,2453.1,2452.9,0.81497]
[1750936150756,2.43101986,2453.0,2452.9,0.81497]
[1750936152159,2.43098986,2453.0,2452.9,0.81497]
[1750936153361,0.81504,2452.9,2452.8,0.81501]
[1750936153560,0.93441986,2452.9,2452.8,0.81501]
[1750936153758,0.93441986,2452.9,2452.8,6.65373153]
[1750936153964,1.49659,2453.0,2452.9,0.81501]
[1750936154155,0.81501,2452.9,2452.8,4.02282]
[1750936154464,0.81501,2452.9,2452.8,4.02284]
[1750936154761,0.81501,2452.9,2452.8,0.81504]
[1750936155262,1.74946787,2452.9,2452.8,0.81504]
[1750936157565,0.81507,2452.7,2452.6,0.81508]
[1750936159862,0.81511,2452.6,2452.5,3.2078]
[1750936160065,1.48291,2452.6,2452.5,3.2078]
[1750936160265,1.48291,2452.6,2452.5,4.02294]
[1750936160566,1.48291,2452.6,2452.5,3.2078]
[1750936161366,0.81524,2452.2,2452.1,4.02306]
[1750936161566,0.81524,2452.2,2452.1,3.2078]
[1750936162359,0.81524,2452.2,2452.1,4.02307]
[1750936162865,0.81519,2452.5,2452.4,0.81517]
[1750936163060,0.6678,2452.6,2452.5,0.81514]
[1750936163373,0.81511,2452.7,2452.6,0.81507]
[1750936163677,0.81511,2452.6,2452.5,2.92491]
[1750936163864,1.75193141,2452.6,2452.5,2.92491]
[1750936164265,1.75193141,2452.6,2452.5,1.53061]
[1750936168071,3.56774294,2452.6,2452.1,5.65006065]
[1750936168266,0.81524,2452.3,2452.2,0.81521]
[1750936169372,0.8152,2452.4,2452.3,0.81517]
[1750936169669,1.75294816,2452.4,2452.3,3.44609153]
[1750936171571,1.75273894,2452.4,2452.3,4.81089153]
[1750936172165,0.93753894,2452.4,2452.3,4.81089153]
[1750936172968,1.75270894,2452.4,2452.3,3.99572153]
[1750936173176,0.81531,2452.0,2451.9,2.63092153]
[1750936173369,0.81537,2451.8,2451.7,5.65006065]
[1750936173570,0.81537,2451.8,2451.7,3.2078]
[1750936173771,0.81541,2451.7,2451.6,6.0345712]
[1750936174767,0.81539,2451.8,2451.6,6.0345712]
[1750936174972,0.81539,2451.8,2451.7,3.44629153]
[1750936176078,1.53744,2451.9,2451.8,0.81537]
[1750936176280,0.81537,2451.8,2451.7,6.65410153]
[1750936176780,0.81537,2451.8,2451.7,4.02318]
[1750936176977,0.81537,2451.8,2451.7,3.2078]
[1750936177882,0.81537,2451.8,2451.7,4.02321]
[1750936178072,0.81537,2451.8,2451.7,3.2078]
[1750936178682,1.53745,2451.9,2451.8,0.81537]
[1750936179179,0.81524,2452.3,2451.9,2.03836]
[1750936179375,1.53301,2452.3,2452.2,3.44614153]
[1750936179681,2.46924408,2452.3,2452.2,0.81522]
[1750936180182,0.93623408,2452.3,2452.2,3.44614153]
[1750936180384,1.75144408,2452.3,2452.2,3.44614153]
[1750936181282,0.93623408,2452.3,2452.2,3.44614153]
[1750936181793,4.02299,2452.4,2452.3,0.81521]
[1750936181986,0.81519,2452.4,2452.3,0.81521]
[1750936182186,1.49406,2452.5,2452.4,0.81517]
[1750936182386,4.02288,2452.8,2452.7,0.81507]
[1750936182580,0.81511,2452.7,2452.6,0.81509]
[1750936183487,0.81506,2452.8,2452.7,0.81504]
[1750936185687,0.81511,2452.7,2452.6,0.81507]
[1750936186194,0.81514,2452.5,2452.4,1.52685]
[1750936186387,0.81531,2452.1,2452.0,0.81528]
[1750936186587,0.8154,2451.8,2451.7,0.81537]
[1750936188288,0.81537,2451.9,2451.8,0.81533]
[1750936188484,0.81533,2452.0,2451.9,0.81531]
[1750936189690,0.81538,2451.9,2451.8,0.81535]
[1750936190895,0.81541,2451.8,2451.7,0.81538]
[1750936191189,6.612,2452.3,2451.7,2.03852]
[1750936191393,0.81524,2452.2,2452.1,0.81525]
[1750936193293,0.6615,2452.3,2452.2,0.81524]
[1750936194495,1.47671,2452.3,2452.2,0.81524]
[1750936195093,0.6615,2452.3,2452.2,0.81524]
[1750936195596,0.6615,2452.3,2452.2,2.13854]
[1750936195994,1.59784935,2452.3,2452.2,2.13854]
[1750936197110,2.41305935,2452.3,2452.2,2.13854]
[1750936197293,0.93634935,2452.3,2452.2,2.13854]
[1750936197491,4.02297,2452.5,2452.4,0.81517]
[1750936197698,4.02297,2452.5,2452.1,5.34777153]
[1750936197699,0.81524,2452.2,2452.1,4.12486153]
[1750936197897,1.75629222,2452.2,2452.1,4.12486153]
[1750936198599,0.81524,2452.2,2452.1,0.81524]
[1750936199404,1.75636308,2452.2,2452.1,0.81524]
[1750936200305,0.81531,2452.1,2452.0,0.81528]
[1750936200604,2.42772472,2452.1,2452.0,0.81528]
[1750936200798,0.81534,2452.0,2451.9,0.81531]
[1750936201003,1.75645472,2452.0,2451.9,0.81531]
[1750936201197,0.94111472,2452.0,2451.9,0.81531]
[1750936201405,2.1674,2452.1,2452.0,0.81531]
[1750936201705,3.10860928,2452.1,2452.0,0.81531]
[1750936203407,2.29330928,2452.1,2452.0,0.81531]
[1750936203809,3.10857928,2452.1,2452.0,0.81531]
[1750936204008,2.29330928,2452.1,2452.0,0.81531]
[1750936204612,1.75647928,2452.1,2452.0,0.81531]
[1750936205708,0.94120928,2452.1,2452.0,0.81531]
[1750936205913,0.94120928,2452.1,2452.0,2.26221]
[1750936206508,0.94120928,2452.1,2452.0,0.81531]
[1750936206708,1.75647928,2452.1,2452.0,0.81531]
[1750936206910,0.94120928,2452.1,2452.0,0.81531]
[1750936208016,0.94120928,2452.1,2452.0,2.26691]
[1750936212218,0.94120928,2452.1,2452.0,8.86691]
[1750936212412,0.7025,2452.5,2452.4,0.81517]
[1750936212612,1.6443411,2452.5,2452.4,3.44609153]
[1750936212814,2.4594811,2452.5,2452.4,0.81517]
[1750936214323,1.6443411,2452.5,2452.4,0.81517]
[1750936214629,2.4594811,2452.5,2452.4,0.81517]
[1750936215220,0.81524,2452.3,2452.2,0.81521]
[1750936215518,1.7570811,2452.3,2452.2,0.81521]
[1750936216725,1.7570811,2452.3,2451.9,2.03834]
[1750936216726,0.81527,2452.2,2452.1,0.81524]
[1750936217022,1.7571111,2452.2,2452.1,0.81524]
[1750936217515,0.81536,2452.0,2451.9,0.81531]
[1750936218623,1.53179,2452.1,2452.0,0.81531]
[1750936218817,1.65830433,2452.1,2452.0,3.44623153]
[1750936219014,0.94180433,2452.1,2452.0,3.44623153]
[1750936219416,1.75707433,2452.1,2452.0,3.44623153]
[1750936219614,0.94180433,2452.1,2452.0,3.44623153]
[1750936222122,0.94180433,2452.1,2452.0,6.65403153]
[1750936222323,0.94180433,2452.1,2452.0,4.02311]
[1750936222823,0.94180433,2452.1,2452.0,5.42051]
[1750936225020,0.94180433,2452.1,2452.0,2.21271]
[1750936225226,0.94180433,2452.1,2452.0,0.81531]
[1750936225422,0.94180433,2452.1,2451.9,0.81531]
[1750936225423,0.81534,2452.0,2451.9,0.81531]
[1750936225627,1.75714433,2452.0,2451.9,0.81531]
[1750936226819,0.94180433,2452.0,2451.9,3.44623153]
[1750936227227,1.75711433,2452.0,2451.9,3.44623153]
[1750936230219,1.75711433,2452.0,2451.9,0.81534]
[1750936230924,7.98013433,2452.0,2451.5,2.43977882]
[1750936231119,0.81553,2451.4,2451.3,0.81551]
[1750936231320,0.81547,2451.6,2451.5,0.81547]
[1750936231525,0.81551,2451.4,2451.3,3.44644153]
[1750936231728,0.94163955,2451.4,2451.3,3.44646153]
[1750936232430,1.75714955,2451.4,2451.3,3.44646153]
[1750936233729,6.6,2451.9,2451.4,2.03875]
[1750936233935,0.6637,2451.9,2451.8,3.44629153]
[1750936234132,3.2078,2452.0,2451.9,0.81534]
[1750936234430,4.14866754,2452.0,2451.9,0.81534]
[1750936235831,4.96397754,2452.0,2451.9,0.81534]
[1750936236228,4.14866754,2452.0,2451.9,0.81534]
[1750936236435,0.6669,2452.3,2452.0,2.03824]
[1750936236630,0.94159001,2452.2,2452.1,3.44619153]
[1750936236831,0.94159001,2452.2,2452.1,4.87819153]
[1750936238429,0.6637,2452.5,2452.4,0.81517]
[1750936238633,2.42049727,2452.5,2452.4,0.81517]
[1750936239333,0.81517,2452.4,2452.3,6.65391153]
[1750936239629,1.75682727,2452.4,2452.3,6.65391153]
[1750936239829,0.94165727,2452.4,2452.3,6.65391153]
[1750936240335,1.75682727,2452.4,2452.3,6.65391153]
[1750936240938,1.75682727,2452.4,2452.3,3.2078]
[1750936241138,1.75682727,2452.4,2452.3,0.81521]
[1750936241435,0.94165727,2452.4,2452.3,0.81521]
[1750936241637,1.75682727,2452.4,2452.3,0.81521]
[1750936243332,0.94165727,2452.4,2452.3,0.81521]
[1750936243731,0.94165727,2452.4,2452.3,3.44613153]
[1750936245538,1.75682727,2452.4,2452.3,3.44613153]
[1750936246340,0.94165727,2452.4,2452.3,3.44613153]
[1750936249233,0.94165727,2452.4,2452.3,4.88113153]
[1750936253747,0.81513,2452.6,2452.5,0.81514]
[1750936253945,1.7555313,2452.6,2452.5,0.81514]
[1750936254945,0.9404013,2452.6,2452.5,0.81514]
[1750936255543,1.7555113,2452.6,2452.5,0.81514]
[1750936256147,0.9404013,2452.6,2452.5,6.65386153]
[1750936256344,0.9404013,2452.6,2452.5,4.02294]
[1750936256640,1.7555113,2452.6,2452.5,3.2078]
[1750936257641,1.7555113,2452.6,2452.5,4.02294]
[1750936258037,0.9404013,2452.6,2452.5,4.02294]
[1750936258245,0.9404013,2452.6,2452.5,6.10634]
[1750936258444,1.7555113,2452.6,2452.5,4.02294]
[1750936259751,0.81511,2452.6,2452.5,4.02294]
[1750936260044,1.76178152,2452.6,2452.5,4.02294]
[1750936261354,1.76178152,2452.6,2452.5,3.2078]
[1750936261945,0.81521,2452.4,2452.3,0.81517]
[1750936262342,1.76273588,2452.4,2452.3,0.81517]
[1750936264055,1.76273588,2452.4,2452.3,0.81521]
[1750936274065,0.94752588,2452.4,2452.3,0.81521]
[1750936274564,2.47699588,2452.4,2452.3,0.81521]
[1750936275463,1.66182588,2452.4,2452.3,0.81521]
[1750936278668,2.47699588,2452.4,2452.3,0.81521]
[1750936279069,1.66182588,2452.4,2452.3,0.81521]
[1750936281376,2.47699588,2452.4,2452.3,0.81521]
[1750936281674,1.66182588,2452.4,2452.3,0.81521]
[1750936281870,2.47699588,2452.4,2452.3,0.81521]
[1750936282373,1.66182588,2452.4,2452.3,0.81521]
[1750936282773,2.47699588,2452.4,2452.3,0.81521]
[1750936283675,1.66182588,2452.4,2452.3,0.81521]
[1750936284773,0.81521,2452.3,2452.2,0.81521]
[1750936284979,0.81531,2452.0,2451.9,3.2078]
[1750936285176,0.81537,2451.9,2451.8,0.81535]
[1750936285472,4.56719588,2451.9,2451.8,0.81535]
[1750936286068,1.64732588,2451.9,2451.8,0.81535]
[1750936286269,0.94752588,2451.9,2451.8,0.81535]
[1750936286481,0.94950096,2452.1,2451.9,2.03832]
[1750936286780,4.74006,2452.2,2452.1,0.81527]
[1750936286973,4.87438191,2452.2,2452.1,0.81527]
[1750936287167,4.15738191,2452.2,2452.1,0.81527]
[1750936287374,4.15738191,2452.2,2452.1,1.48417]
[1750936287575,4.15738191,2452.2,2452.1,2.84117]
[1750936288073,4.97262191,2452.2,2452.1,2.84117]
[1750936288270,4.15738191,2452.2,2452.1,2.84117]
[1750936289976,4.97262191,2452.2,2452.1,2.84117]
[1750936290176,4.15738191,2452.2,2452.1,2.84117]
[1750936290378,4.97262191,2452.2,2452.1,2.84117]
[1750936290985,4.15738191,2452.2,2452.1,2.84117]
[1750936292672,0.94958191,2452.2,2452.1,6.04897]
[1750936292980,0.94958191,2452.2,2452.1,11.04897]
[1750936293181,1.91e-06,2452.2,2452.1,11.04897]
[1750936293382,2.41878492,2452.7,2452.6,0.81511]
[1750936293588,3.22504656,2453.1,2453.0,0.81497]
[1750936293786,3.22504656,2453.3,2453.2,0.81491]
[1750936293979,3.22504656,2453.4,2453.3,0.41741552]
[1750936294178,3.22504656,2453.5,2453.4,0.81484]
[1750936294379,3.22504656,2453.5,2453.4,3.44576153]
[1750936294675,3.22504656,2453.6,2453.5,0.81481]
[1750936294886,3.22504656,2453.6,2453.5,4.84443153]
[1750936295075,3.22504656,2453.7,2453.5,4.02962153]
[1750936295278,3.88914656,2453.8,2453.7,0.81474]
[1750936295582,0.6641,2453.8,2453.7,3.44566153]
[1750936297383,4.68225,2454.0,2453.9,0.81468]
[1750936297881,4.68225,2454.0,2453.8,0.81468]
[1750936298088,0.81468,2453.9,2453.7,3.44563153]
[1750936298277,0.81468,2453.9,2453.8,0.81471]
[1750936298585,0.81468,2453.9,2453.7,2.63092153]
[1750936298586,0.81471,2453.8,2453.7,3.44564153]
[1750936299483,0.81471,2453.8,2453.7,2.63092153]
[1750936299682,0.81478,2453.6,2453.4,3.2078]
[1750936299884,0.81481,2453.5,2453.4,4.02264]
[1750936300380,0.81481,2453.5,2453.4,3.2078]
[1750936300988,0.81481,2453.5,2453.4,4.02264]
[1750936301376,0.81481,2453.5,2453.4,3.2078]
[1750936301581,0.81481,2453.5,2453.4,4.02264]
[1750936301885,0.81481,2453.5,2453.4,3.2078]
[1750936304481,2.03707,2453.5,2453.1,3.99582153]
[1750936304686,0.81488,2453.3,2453.2,6.571]
[1750936304884,0.81488,2453.3,2453.2,7.3859]
[1750936305085,1.52528,2453.3,2453.2,7.3859]
[1750936305593,0.7104,2453.3,2453.2,7.3859]
[1750936306188,1.52528,2453.3,2453.2,7.3859]
[1750936306786,0.81486,2453.4,2453.3,0.81482]
[1750936306985,0.81486,2453.4,2453.3,3.44574153]
[1750936307989,0.81486,2453.4,2453.3,0.81482]
[1750936311892,0.81483,2453.5,2453.4,0.8148]
[1750936313487,0.81488,2453.4,2453.3,0.81486]
[1750936315291,0.81491,2453.3,2453.2,0.81488]
[1750936315492,1.50191,2453.3,2453.2,0.81488]
[1750936323500,1.6155052,2453.3,2453.2,0.81488]
[1750936323700,0.9285052,2453.3,2453.2,3.44580153]
[1750936324000,0.9285052,2453.3,2453.2,5.45280153]
[1750936324191,1.48414,2453.5,2453.4,0.81484]
[1750936324394,2.41333052,2453.5,2453.4,0.81484]
[1750936324599,2.41333052,2453.5,2453.4,3.44576153]
[1750936325698,1.59849052,2453.5,2453.4,3.44576153]
[1750936326499,0.92919052,2453.5,2453.4,6.65356153]
[1750936328206,0.81467,2454.0,2453.9,0.81468]